fUST/lending_fUST_20260616
["ID","MTS","AMOUNT","RATE_DAILY","PERIOD"]
[425176056,1781559040000,-855.91,0.00019722,2]
[425176037,1781559040000,-855.91,0.00019448,2]
[425176052,1781559040000,-500.0,0.00019722,2]
[425176033,1781559040000,-500.0,0.00019448,2]
[425176036,1781559040000,-544.26,0.00019448,2]
[425176011,1781559040000,-466.46,0.00019178,2]
[425176010,1781559040000,-500.0,0.00019178,2]
[425176012,1781559040000,-645.7074,0.00019178,2]
[425176013,1781559040000,-501.835,0.00019178,2]
[425176016,1781559040000,-714.9,0.00019178,2]
[425176015,1781559040000,-752.46,0.00019178,2]
[425176017,1781559040000,-357.45,0.00019178,2]
[425176018,1781559040000,-654.19,0.00019178,2]
[425176014,1781559040000,-504.12,0.00019178,2]
[425176020,1781559040000,-340.36924812,0.0001935,2]
[425176023,1781559040000,-500.0,0.0001935,2]
[425176021,1781559040000,-500.0,0.0001935,2]
[425176019,1781559040000,-327.09,0.00019178,2]
[425176022,1781559040000,-402.44205014,0.0001935,2]
[425176035,1781559040000,-3107.06,0.00019448,2]
[425176009,1781559040000,-500.0,0.00019176,2]
[425176032,1781559040000,-2681.78,0.00019448,2]
[425176030,1781559040000,-500.0,0.00019351,2]
[425176031,1781559040000,-1086.756693,0.00019412,2]
[425176029,1781559040000,-500.0,0.00019351,2]
[425176034,1781559040000,-500.0,0.00019448,2]
[425176028,1781559040000,-570.73,0.00019351,2]
[425176025,1781559040000,-500.0,0.00019351,2]
[425176026,1781559040000,-500.0,0.00019351,2]
[425176024,1781559040000,-500.0,0.00019351,2]
[425176027,1781559040000,-628.23,0.00019351,2]
[425176074,1781559041000,-5044.68427,0.00019963,2]
[425176066,1781559041000,-500.0,0.00019899,2]
[425176068,1781559041000,-241.90790177,0.00019899,2]
[425176067,1781559041000,-500.0,0.00019899,2]
[425176069,1781559041000,-628.23,0.00019899,2]
[425176070,1781559041000,-570.73,0.00019899,2]
[425176071,1781559041000,-500.0,0.00019899,2]
[425176073,1781559041000,-551.13272665,0.0001996,2]
[425176072,1781559041000,-500.0,0.00019899,2]
[425176075,1781559041000,-3117.579755,0.00019963,2]
[425176076,1781559041000,-2016.996354,0.00019963,2]
[425176080,1781559041000,-2681.78,0.00019996,2]
[425176077,1781559041000,-446.2957353,0.0001998,2]
[425176087,1781559041000,-24129.35434988,0.0002,2]
[425176082,1781559041000,-500.0,0.00019996,2]
[425176083,1781559041000,-3107.06,0.00019996,2]
[425176081,1781559041000,-188.88,0.00019996,2]
[425176079,1781559041000,-160.0,0.00019991,4]
[425176084,1781559041000,-544.26,0.00019996,2]
[425176085,1781559041000,-855.91,0.00019996,2]
[425176088,1781559041000,-307910.28525834,0.0002,2]
[425176089,1781559041000,-5230.47318742,0.0002,2]
[425176086,1781559041000,-500.0,0.00019998,2]
[425176078,1781559041000,-509.58360988,0.0001998,2]
[425176091,1781559042000,-3214.65,0.0002,2]
[425176099,1781559043000,-500.0,0.00016708,2]
[425176101,1781559043000,-626.05063515,0.00017256,2]
[425176100,1781559043000,-500.0,0.00016982,2]
[425176103,1781559043000,-1036549.97722371,0.0002,2]
[425176102,1781559043000,-303.99101866,0.0002,2]
[425176105,1781559043000,-1883.42,0.0002,2]
[425176106,1781559043000,-126000.0,0.0002,2]
[425176107,1781559043000,-114018.84668691,0.0002,2]
[425176104,1781559043000,-391724.5732411,0.0002,2]
[425176120,1781559046000,-25047.62410058,0.0002,2]
[425176119,1781559046000,-4590.01242646,0.0002,2]
[425176271,1781560233000,-1302.37594894,0.00013099,2]
[425176278,1781560234000,-1114.51852297,0.00013099,2]
[425176365,1781560238000,-1229.15,0.00016608,2]
[425176360,1781560238000,-769.69839092,0.00016389,2]
[425176358,1781560238000,-160.0,0.00016389,2]
[425176364,1781560238000,-186.0,0.0001639,2]
[425176359,1781560238000,-160.0,0.00016389,2]
[425176357,1781560238000,-300.0,0.00016388,2]
[425176355,1781560238000,-878.80552819,0.00013099,2]
[425176369,1781560238000,-500.0,0.00016608,2]
[425176366,1781560238000,-500.0,0.00016608,2]
[425176356,1781560238000,-3064.9346386,0.00015627,2]
[425176363,1781560238000,-445.0,0.0001639,2]
[425176361,1781560238000,-160.0,0.00016389,2]
[425176375,1781560238000,-500.0,0.00016609,2]
[425176371,1781560238000,-500.0,0.00016608,2]
[425176373,1781560238000,-500.0,0.00016608,2]
[425176374,1781560238000,-1424.07,0.00016608,2]
[425176370,1781560238000,-500.0,0.00016608,2]
[425176362,1781560238000,-957.0,0.0001639,2]
[425176367,1781560238000,-500.0,0.00016608,2]
[425176368,1781560238000,-500.0,0.00016608,2]
[425176372,1781560238000,-500.0,0.00016608,2]
[425176380,1781560239000,-2194.12911963,0.00016782,2]
[425176385,1781560239000,-500.0,0.00016881,2]
[425176395,1781560239000,-500.0,0.00016881,2]
[425176384,1781560239000,-423.32487148,0.00016881,2]
[425176396,1781560239000,-500.0,0.00016881,2]
[425176377,1781560239000,-500.0,0.00016609,2]
[425176376,1781560239000,-500.0,0.00016609,2]
[425176381,1781560239000,-493.99615222,0.00016881,2]
[425176383,1781560239000,-500.0,0.00016881,2]
[425176378,1781560239000,-500.0,0.0001661,2]
[425176391,1781560239000,-500.0,0.00016881,2]
[425176382,1781560239000,-500.0,0.00016881,2]
[425176379,1781560239000,-500.0,0.0001661,2]
[425176388,1781560239000,-500.0,0.00016881,2]
[425176392,1781560239000,-500.0,0.00016881,2]
[425176401,1781560239000,-458.84015911,0.00016882,2]
[425176387,1781560239000,-500.0,0.00016881,2]
[425176404,1781560239000,-500.0,0.00016882,2]
[425176400,1781560239000,-1229.15,0.00016882,2]
[425176402,1781560239000,-459.72653694,0.00016882,2]
[425176399,1781560239000,-500.0,0.00016881,2]
[425176403,1781560239000,-500.0,0.00016882,2]
[425176398,1781560239000,-500.0,0.00016881,2]
[425176393,1781560239000,-500.0,0.00016881,2]
[425176394,1781560239000,-500.0,0.00016881,2]
[425176390,1781560239000,-500.0,0.00016881,2]
[425176386,1781560239000,-500.0,0.00016881,2]
[425176389,1781560239000,-557.86367397,0.00016881,2]
[425176397,1781560239000,-340.1746996,0.00016881,2]
[425176405,1781560239000,-251.78234926,0.00016882,2]
[425176413,1781560241000,-248.21765074,0.00016882,2]
[425176414,1781560241000,-402.53977373,0.00016882,2]
[425176412,1781560241000,-160.0,0.00016389,2]
[425176420,1781560243000,-500.0,0.00016882,2]
[425176425,1781560243000,-500.0,0.00016884,2]
[425176422,1781560243000,-411.56402771,0.00016883,2]
[425176423,1781560243000,-342.74438757,0.00016883,2]
[425176428,1781560243000,-1229.15,0.00017156,2]
[425176429,1781560243000,-500.0,0.00017156,2]
[425176418,1781560243000,-97.46022627,0.00016882,2]
[425176419,1781560243000,-500.0,0.00016882,2]
[425176421,1781560243000,-1424.07,0.00016882,2]
[425176427,1781560243000,-180.04321037,0.00016934,2]
[425176438,1781560243000,-500.0,0.00017158,2]
[425176426,1781560243000,-500.0,0.00016884,2]
[425176431,1781560243000,-500.0,0.00017156,2]
[425176432,1781560243000,-500.0,0.00017156,2]
[425176434,1781560243000,-500.0,0.00017156,2]
[425176433,1781560243000,-500.0,0.00017156,2]
[425176436,1781560243000,-500.0,0.00017157,2]
[425176430,1781560243000,-500.0,0.00017156,2]
[425176435,1781560243000,-1424.07,0.00017156,2]
[425176437,1781560243000,-500.0,0.00017158,2]
[425176439,1781560243000,-7273.97896601,0.00017329,2]
[425176424,1781560243000,-500.0,0.00016883,2]
[425176465,1781560405000,1999.7,0.000115,2]
[425176591,1781561432000,-3700.448674,0.00016106,2]
[425176592,1781561432000,-81.77198854,0.00016344,2]
[425176942,1781561441000,-500.0,0.00017501,2]
[425176937,1781561441000,-500.0,0.00017327,2]
[425176938,1781561441000,-500.0,0.00017327,2]
[425176943,1781561441000,-500.0,0.00017501,2]
[425176940,1781561441000,-500.0,0.00017501,2]
[425176936,1781561441000,-265.90390977,0.00017327,2]
[425176939,1781561441000,-500.0,0.0001743,2]
[425176935,1781561441000,-1075.5,0.00017327,2]
[425176934,1781561441000,-500.0,0.00017156,2]
[425176932,1781561441000,-333.17372137,0.00016934,2]
[425176933,1781561441000,-334.7218015,0.0001701,2]
[425176929,1781561441000,-769.69839092,0.00016608,2]
[425176924,1781561441000,-160.0,0.00016607,2]
[425176928,1781561441000,-500.0,0.00016608,2]
[425176931,1781561441000,-400.0,0.000169,5]
[425176927,1781561441000,-160.0,0.00016607,2]
[425176926,1781561441000,-160.0,0.00016607,2]
[425176925,1781561441000,-160.0,0.00016607,2]
[425176921,1781561441000,-445.0,0.0001639,2]
[425176923,1781561441000,-3000.0,0.000164,2]
[425176922,1781561441000,-186.0,0.0001639,2]
[425176920,1781561441000,-957.0,0.0001639,2]
[425176919,1781561441000,-657.08119486,0.00016344,2]
[425176947,1781561441000,-1075.5,0.00017601,2]
[425176930,1781561441000,-500.0,0.00016882,2]
[425176944,1781561441000,-500.0,0.00017501,2]
[425176946,1781561441000,-1246.06,0.00017501,2]
[425176948,1781561441000,-500.0,0.00017601,2]
[425176945,1781561441000,-500.0,0.00017501,2]
[425176971,1781561441000,-500.0,0.00018,2]
[425176972,1781561441000,-567.88209223,0.00018049,2]
[425176967,1781561441000,-500.0,0.00017875,2]
[425176974,1781561441000,-500.0,0.00018049,2]
[425176965,1781561441000,-203.539091,0.00017826,2]
[425176966,1781561441000,-1075.5,0.00017875,2]
[425176969,1781561441000,-191.0,0.00017918,3]
[425176968,1781561441000,-500.0,0.00017875,2]
[425176964,1781561441000,-1246.06,0.00017775,2]
[425176963,1781561441000,-500.0,0.00017775,2]
[425176962,1781561441000,-2142.17000406,0.00017775,2]
[425176959,1781561441000,-500.0,0.00017775,2]
[425176970,1781561441000,-500.0,0.00017978,2]
[425176957,1781561441000,-496.61551089,0.00017774,2]
[425176960,1781561441000,-500.0,0.00017775,2]
[425176949,1781561441000,-500.0,0.00017601,2]
[425176973,1781561441000,-500.0,0.00018049,2]
[425176952,1781561441000,-500.0,0.00017774,2]
[425176951,1781561441000,-500.0,0.00017774,2]
[425176953,1781561441000,-500.0,0.00017774,2]
[425176956,1781561441000,-500.0,0.00017774,2]
[425176961,1781561441000,-500.0,0.00017775,2]
[425176954,1781561441000,-195.20410817,0.00017774,2]
[425176950,1781561441000,-500.0,0.00017704,2]
[425176958,1781561441000,-500.0,0.00017775,2]
[425176955,1781561441000,-500.0,0.00017774,2]
[425176989,1781561442000,-1075.5,0.00018423,2]
[425176986,1781561442000,-500.0,0.00018323,2]
[425176991,1781561442000,-500.0,0.00018423,2]
[425176992,1781561442000,-21816.38441708,0.00018423,2]
[425176990,1781561442000,-500.0,0.00018423,2]
[425176987,1781561442000,-1246.06,0.00018323,2]
[425176988,1781561442000,-227.0,0.00018352,2]
[425176983,1781561442000,-500.0,0.00018323,2]
[425176984,1781561442000,-500.0,0.00018323,2]
[425176985,1781561442000,-500.0,0.00018323,2]
[425176976,1781561442000,-500.0,0.00018049,2]
[425176979,1781561442000,-500.0,0.00018149,2]
[425176981,1781561442000,-500.0,0.00018252,2]
[425176980,1781561442000,-500.0,0.00018149,2]
[425176977,1781561442000,-1246.06,0.00018049,2]
[425176975,1781561442000,-500.0,0.00018049,2]
[425176995,1781561442000,-500.0,0.00018597,2]
[425176982,1781561442000,-799.0,0.000183,2]
[425176994,1781561442000,-2142.17000404,0.00018572,2]
[425176978,1781561442000,-1075.5,0.00018149,2]
[425176997,1781561442000,-215.80931992,0.00018597,2]
[425176993,1781561442000,-545.33,0.00018526,2]
[425177013,1781561442000,-172.0,0.00019014,3]
[425177012,1781561442000,-500.0,0.00018971,2]
[425177011,1781561442000,-500.0,0.00018971,2]
[425177006,1781561442000,-500.0,0.00018871,2]
[425177007,1781561442000,-500.0,0.00018871,2]
[425177004,1781561442000,-500.0,0.00018697,2]
[425177005,1781561442000,-500.0,0.00018871,2]
[425177008,1781561442000,-500.0,0.00018871,2]
[425177014,1781561442000,-90.63082326,0.00019145,2]
[425177010,1781561442000,-1075.5,0.00018971,2]
[425177002,1781561442000,-1075.5,0.00018697,2]
[425177000,1781561442000,-1246.06,0.00018597,2]
[425177001,1781561442000,-1000.0,0.0001867,5]
[425177003,1781561442000,-500.0,0.00018697,2]
[425177009,1781561442000,-1246.06,0.00018871,2]
[425176999,1781561442000,-500.0,0.00018597,2]
[425176998,1781561442000,-284.19068008,0.00018597,2]
[425176996,1781561442000,-500.0,0.00018597,2]
[425177027,1781561443000,-409.36917674,0.00019145,2]
[425177029,1781561443000,-341.96169326,0.00019145,2]
[425177032,1781561443000,-801.86382376,0.00019145,2]
[425177030,1781561443000,-110.30598917,0.00019145,2]
[425177031,1781561443000,-500.0,0.00019145,2]
[425177028,1781561443000,-500.0,0.00019145,2]
[425177090,1781561447000,-671.13589219,0.00019244,2]
[425177085,1781561447000,-444.19617624,0.00019145,2]
[425177086,1781561447000,-262.12871549,0.00019244,2]
[425177088,1781561447000,-671.13589219,0.00019244,2]
[425177089,1781561447000,-671.13589219,0.00019244,2]
[425177087,1781561447000,-671.13589219,0.00019244,2]
[425177091,1781561447000,-671.13589219,0.00019244,2]
[425177092,1781561447000,-631.71590829,0.00019244,2]
[425177096,1781561447000,-116.36650616,0.00019244,2]
[425177095,1781561447000,-186.63349384,0.00019244,2]
[425177097,1781561447000,-554.05762207,0.00019244,2]
[425177094,1781561447000,-484.50239835,0.00019244,2]
[425177093,1781561447000,-39.4199839,0.00019244,2]
[425177252,1781562631000,-331.055,0.00016682,2]
[425177320,1781562638000,-332.1716185,0.0001857,2]
[425177325,1781562638000,-761.81,0.00018695,2]
[425177323,1781562638000,-500.0,0.00018694,2]
[425177322,1781562638000,-500.0,0.00018694,2]
[425177321,1781562638000,-251.0413511,0.0001857,2]
[425177324,1781562638000,-882.63,0.00018694,2]
[425177332,1781562638000,-761.81,0.00018969,2]
[425177318,1781562638000,-761.81,0.00018421,2]
[425177328,1781562638000,-1000.0,0.0001894,5]
[425177329,1781562638000,-500.0,0.00018968,2]
[425177326,1781562638000,-500.0,0.00018821,2]
[425177337,1781562638000,-278.06764492,0.00019242,2]
[425177327,1781562638000,-162.0,0.00018904,3]
[425177331,1781562638000,-882.63,0.00018968,2]
[425177333,1781562638000,-2271.01257672,0.00018995,2]
[425177335,1781562638000,-234.116,0.00019144,2]
[425177334,1781562638000,-500.0,0.00019095,2]
[425177317,1781562638000,-882.63,0.0001842,2]
[425177330,1781562638000,-500.0,0.00018968,2]
[425177313,1781562638000,-500.0,0.0001842,2]
[425177309,1781562638000,-5000.0,0.00018,2]
[425177319,1781562638000,-500.0,0.00018547,2]
[425177336,1781562638000,-500.0,0.00019242,2]
[425177297,1781562638000,-4668.945,0.00016682,2]
[425177298,1781562638000,-769.69839092,0.00016851,2]
[425177299,1781562638000,-186.0,0.00017022,2]
[425177302,1781562638000,-160.0,0.00017597,2]
[425177300,1781562638000,-163.934,0.00017022,2]
[425177301,1781562638000,-160.0,0.00017597,2]
[425177304,1781562638000,-160.0,0.00017597,2]
[425177312,1781562638000,-500.0,0.00018273,2]
[425177303,1781562638000,-160.0,0.00017597,2]
[425177306,1781562638000,-181.0,0.00017808,3]
[425177305,1781562638000,-328.0,0.00017631,2]
[425177307,1781562638000,-500.0,0.00017999,2]
[425177310,1781562638000,-761.81,0.00018147,2]
[425177311,1781562638000,-487.03988243,0.00018273,2]
[425177315,1781562638000,-341.96169326,0.0001842,2]
[425177314,1781562638000,-500.0,0.0001842,2]
[425177316,1781562638000,-283.76019452,0.0001842,2]
[425177308,1781562638000,-500.0,0.00017999,2]
[425177344,1781562638000,-320.12876856,0.00019516,2]
[425177379,1781562638000,-319.28398757,0.0002,14]
[425177342,1781562638000,-254.423864,0.00019347,2]
[425177364,1781562638000,-164.0,0.0002,3]
[425177368,1781562638000,-10392.07076807,0.0002,2]
[425177365,1781562638000,-51410.00846835,0.0002,2]
[425177366,1781562638000,-10629.94319411,0.0002,2]
[425177362,1781562638000,-668.35,0.0001999,3]
[425177370,1781562638000,-455.74154978,0.0002,2]
[425177369,1781562638000,-376.91964075,0.0002,2]
[425177371,1781562638000,-205.63262948,0.0002,2]
[425177338,1781562638000,-882.63,0.00019242,2]
[425177373,1781562638000,-162.19002025,0.0002,2]
[425177377,1781562638000,-261056.65728361,0.0002,2]
[425177381,1781562638000,-10000.0,0.0002,2]
[425177375,1781562638000,-156.8126833,0.0002,2]
[425177376,1781562638000,-259816.38644252,0.0002,2]
[425177380,1781562638000,-208.34500136,0.0002,2]
[425177372,1781562638000,-1000.0,0.0002,2]
[425177378,1781562638000,-52487.90465328,0.0002,5]
[425177382,1781562638000,-67033.93130367,0.0002,2]
[425177374,1781562638000,-25951.90526126,0.0002,2]
[425177367,1781562638000,-4521.91653254,0.0002,2]
[425177363,1781562638000,-160.0,0.00019991,3]
[425177360,1781562638000,-445.54,0.0001999,3]
[425177339,1781562638000,-761.81,0.00019243,2]
[425177340,1781562638000,-311.6780814,0.00019244,2]
[425177345,1781562638000,-882.63,0.00019516,2]
[425177343,1781562638000,-500.0,0.00019369,2]
[425177341,1781562638000,-10000.0,0.00019244,2]
[425177346,1781562638000,-761.81,0.00019517,2]
[425177348,1781562638000,-500.0,0.00019643,2]
[425177361,1781562638000,-222.77,0.0001999,3]
[425177353,1781562638000,-500.0,0.00019917,2]
[425177347,1781562638000,-2271.01257668,0.00019618,2]
[425177356,1781562638000,-161.44,0.00019961,2]
[425177351,1781562638000,-200.0,0.00019841,2]
[425177358,1781562638000,-161.44,0.00019965,2]
[425177352,1781562638000,-471.0,0.000199,5]
[425177355,1781562638000,-161.44,0.00019959,2]
[425177354,1781562638000,-161.44,0.00019957,2]
[425177350,1781562638000,-761.81,0.00019791,2]
[425177349,1781562638000,-882.63,0.0001979,2]
[425177359,1781562638000,-161.44,0.00019965,2]
[425177357,1781562638000,-161.44,0.00019963,2]
[425177386,1781562640000,-1294.80407779,0.0002,2]
[425177408,1781562646000,-12146.49035461,0.0002,2]
[425177503,1781563831000,-121.1041355,0.00017417,2]
[425177499,1781563831000,-1191.5041355,0.0001707,2]
[425177501,1781563831000,-49.8958645,0.00017417,2]
[425177505,1781563831000,-957.0,0.00017571,2]
[425177507,1781563831000,-186.0,0.00017571,2]
[425177508,1781563831000,-166.58662532,0.00017665,2]
[425177511,1781563832000,-45.32256238,0.00017665,2]
[425177513,1781563832000,-153.69623317,0.00017665,2]
[425177518,1781563832000,-300.0,0.00018689,2]
[425177516,1781563832000,-160.0,0.00018408,3]
[425177522,1781563832000,-769.69839092,0.00018689,2]
[425177514,1781563832000,-217.0,0.00017781,3]
[425177529,1781563832000,-437.4097272,0.00018778,2]
[425177528,1781563832000,-245.16654704,0.00018778,2]
[425177520,1781563832000,-160.0,0.00018689,2]
[425177526,1781563832000,-127.54462409,0.0001869,2]
[425177531,1781563832000,-229.99,0.00018808,2]
[425177533,1781563832000,-399.69368667,0.00018956,5]
[425177524,1781563832000,-32.45537591,0.0001869,2]
[425177615,1781563839000,-899.86857879,0.00019167,2]
[425177606,1781563839000,-160.0,0.00018689,2]
[425177607,1781563839000,-353.16645067,0.00018956,5]
[425177608,1781563839000,-167.17943007,0.00019143,2]
[425177613,1781563839000,-899.86857879,0.00019167,2]
[425177611,1781563839000,-668.31,0.00019158,3]
[425177609,1781563839000,-85.1709288,0.00019158,3]
[425177617,1781563839000,-899.86857879,0.00019167,2]
[425177612,1781563839000,-203.5141163,0.00019167,2]
[425177610,1781563839000,-137.5990712,0.00019158,3]
[425177616,1781563839000,-899.86857879,0.00019167,2]
[425177620,1781563839000,-899.86857879,0.00019167,2]
[425177621,1781563839000,-899.86857879,0.00019167,2]
[425177618,1781563839000,-899.86857879,0.00019167,2]
[425177619,1781563839000,-899.86857879,0.00019167,2]
[425177623,1781563839000,-899.86857879,0.00019167,2]
[425177624,1781563839000,-899.86857879,0.00019167,2]
[425177622,1781563839000,-899.86857879,0.00019167,2]
[425177625,1781563839000,-899.86857879,0.00019167,2]
[425177614,1781563839000,-239.86968602,0.00019167,2]
[425177634,1781563840000,-500.0,0.00019167,2]
[425177652,1781563840000,-913.71271077,0.00019167,2]
[425177654,1781563840000,-913.71271077,0.00019167,2]
[425177656,1781563840000,-913.71271077,0.00019167,2]
[425177671,1781563840000,-151.0,0.00019256,2]
[425177663,1781563840000,-1081.71795113,0.00019167,2]
[425177660,1781563840000,-913.71271077,0.00019167,2]
[425177669,1781563840000,-661.97,0.00019168,2]
[425177635,1781563840000,-433.09096335,0.00019167,2]
[425177667,1781563840000,-44303.21675584,0.00019168,2]
[425177650,1781563840000,-913.71271077,0.00019167,2]
[425177633,1781563840000,-500.0,0.00019167,2]
[425177642,1781563840000,-913.71271077,0.00019167,2]
[425177638,1781563840000,-333.28907008,0.00019167,2]
[425177637,1781563840000,-500.0,0.00019167,2]
[425177644,1781563840000,-913.71271077,0.00019167,2]
[425177646,1781563840000,-913.71271077,0.00019167,2]
[425177648,1781563840000,-913.71271077,0.00019167,2]
[425177632,1781563840000,-500.0,0.00019167,2]
[425177630,1781563840000,-500.0,0.00019167,2]
[425177626,1781563840000,-899.86857879,0.00019167,2]
[425177629,1781563840000,-899.86857879,0.00019167,2]
[425177628,1781563840000,-899.86857879,0.00019167,2]
[425177627,1781563840000,-899.86857879,0.00019167,2]
[425177658,1781563840000,-913.71271077,0.00019167,2]
[425177636,1781563840000,-500.0,0.00019167,2]
[425177661,1781563840000,-1081.71795113,0.00019167,2]
[425177631,1781563840000,-500.0,0.00019167,2]
[425177677,1781563840000,-151.0,0.00019256,2]
[425177772,1781563840000,-2757.63448116,0.000198,2]
[425177665,1781563840000,-111221.00080962,0.00019168,2]
[425177774,1781563840000,-2604.88942571,0.000198,2]
[425177770,1781563840000,-917.29001946,0.000198,2]
[425177724,1781563840000,-661.97,0.00019716,2]
[425177726,1781563840000,-8980.29555578,0.000198,2]
[425177715,1781563840000,-244.74598381,0.000196,2]
[425177711,1781563840000,-212.019886,0.00019533,2]
[425177713,1781563840000,-539.62,0.00019542,2]
[425177709,1781563840000,-661.97,0.00019442,2]
[425177701,1781563840000,-264.99441175,0.00019268,2]
[425177705,1781563840000,-501.28827127,0.00019268,2]
[425177707,1781563840000,-201.0,0.00019425,3]
[425177703,1781563840000,-500.0,0.00019268,2]
[425177640,1781563840000,-899.86857879,0.00019167,2]
[425177699,1781563840000,-500.0,0.00019268,2]
[425177679,1781563840000,-151.0,0.00019256,2]
[425177697,1781563840000,-415.249486,0.00019268,2]
[425177673,1781563840000,-151.0,0.00019256,2]
[425177686,1781563840000,-151.0,0.00019256,2]
[425177693,1781563840000,-151.0,0.00019256,2]
[425177688,1781563840000,-151.0,0.00019256,2]
[425177675,1781563840000,-151.0,0.00019256,2]
[425177684,1781563840000,-151.0,0.00019256,2]
[425177695,1781563840000,-539.62,0.00019268,2]
[425177690,1781563840000,-151.0,0.00019256,2]
[425177691,1781563840000,-151.0,0.00019256,2]
[425177681,1781563840000,-151.0,0.00019256,2]
[425177683,1781563840000,-151.0,0.00019256,2]
[425178074,1781563843000,-300.0,0.000198,2]
[425178443,1781563846000,-10829.19666015,0.000198,2]
[425178429,1781563846000,-3845.97431423,0.000198,2]
[425187612,1781565040000,-1753.9439814,0.00019218,2]
[425187616,1781565040000,-218.59343753,0.00019516,2]
[425187613,1781565040000,-328.0572954,0.00019218,2]
[425187614,1781565040000,-156.49,0.00019256,2]
[425187610,1781565040000,-160.0,0.00019162,2]
[425187608,1781565040000,-160.0,0.00019162,2]
[425187607,1781565040000,-291.7096592,0.00018318,2]
[425187602,1781565040000,-186.0,0.00017571,2]
[425187611,1781565040000,-300.0,0.00019162,2]
[425187605,1781565040000,-846.38515602,0.00018,2]
[425187606,1781565040000,-3044.3950463,0.00018188,2]
[425187603,1781565040000,-182.0,0.00017753,3]
[425187604,1781565040000,-769.69839092,0.00017997,2]
[425187601,1781565040000,-957.0,0.00017571,2]
[425187599,1781565040000,-417.89827648,0.00015,2]
[425187600,1781565040000,-309.76,0.0001575,2]
[425187609,1781565040000,-2426.6635634,0.00019162,2]
[425187619,1781565040000,-703.35699074,0.000196,2]
[425187618,1781565040000,-159.97,0.00019572,2]
[425187617,1781565040000,-161.5904472,0.00019516,2]
[425187615,1781565040000,-164.0,0.00019397,3]
[425187636,1781565040000,-936.6377374,0.000199,2]
[425187635,1781565040000,-3992.27447946,0.000199,2]
[425187633,1781565040000,-16269.72023898,0.000199,2]
[425187634,1781565040000,-2858.13287074,0.000199,2]
[425187629,1781565040000,-10811.52640757,0.000199,2]
[425187628,1781565040000,-152.8572257,0.000199,3]
[425187630,1781565040000,-6433.32439875,0.000199,2]
[425187622,1781565040000,-201847.6680383,0.000198,2]
[425187632,1781565040000,-3715.72626716,0.000199,2]
[425187627,1781565040000,-251.16595381,0.00019899,2]
[425187625,1781565040000,-148124.64220099,0.000198,2]
[425187626,1781565040000,-500.0,0.00019899,2]
[425187620,1781565040000,-500.0,0.00019798,2]
[425187621,1781565040000,-579.22,0.00019799,2]
[425187623,1781565040000,-264830.46763913,0.000198,2]
[425187631,1781565040000,-1565523.72259271,0.000199,2]
[425187624,1781565040000,-284343.77713598,0.000198,2]
[425187976,1781565043000,-1856.8499505,0.000199,2]
[425188232,1781565046000,-1001.97867047,0.000199,2]
[425188239,1781565046000,-12397.4543,0.000199,2]
[425195946,1781566232000,-1216.83345465,0.00016357,2]
[425195947,1781566232000,-309.76,0.00017726,2]
[425195948,1781566232000,-186.0,0.00018198,2]
[425195949,1781566232000,-485.489841,0.00018356,2]
[425195945,1781566232000,-1042.23987346,0.00016193,2]
[425195950,1781566232000,-3090.01059043,0.00018384,2]
[425195972,1781566238000,-151.0,0.00018737,2]
[425195984,1781566238000,-500.0,0.00019526,2]